Workbook

Sheet Abbreviations
A1: Abbreviations and Definitions
A2: CGW | B2: Candidate Gateway
A3: ERP | B3: Enterprise Resource Planning
A4: GGAP | B4: Generally Good Administration Practices
A5: HCM | B5: Human Capital Management
A6: PS | B6: Oracle PeopleSoft
A7: RACI | B7: Key responsibilities: responsible, accountable, consulted, informed
A8: SCM | B8: Supply Chain Management
A9: SLA | B9: Service Level Agreement

Sheet Scoring
A1: Scoring | E1: FOR PRIORITISATION/WEIGHT CALCULATIONS (Not to be included in bidder submission template)
A3: Yrs of Experience (10% of Experience Score) | B3: Score | C3: Description (see GGAP Worksheet) | E3: CSIR Capability | F3: Score | G3: Description
A4: < 1 yr | B4: 0 | C4: Less than one year | E4: Expert | F4: 0 | G4: We can resolve problems
A5: ≥ 1 yr & < 3 yrs | B5: 5 | C5: One or more years but less than three years | E5: Advanced | F5: 2 | G5: We can do it
A6: ≥ 3 yr & < 5 yrs | B6: 7 | C6: Three or more years but less than five years | E6: Proficient | F6: 3 | G6: We can help ourselves
A7: ≥ 5yr & < 7 yrs | B7: 9 | C7: Five or more years but less than seven years | E7: Basic | F7: 4 | G7: We require assistance/direction
A8: > 7 yrs | B8: 10 | C8: Seven or more years | E8: None | F8: 5 | G8: We require instruction
A10: Company Capability (90% of Experience Score) | B10: Score | C10: Description (see GGAP Worksheet) | E10: CSIR Capacity | F10: Score | G10: Description
A11: None | B11: 0 | C11: Your company has no experience in …. | E11: Dedicated | F11: 0 | G11: We have space capacity that can be redirected
A12: Basic | B12: 5 | C12: Your company may have to consult to execute the standard administration practices. | E12: Free | F12: 2 | G12: We can free up capacity with minimal operational or delivery impact, or both
A13: Proficient | B13: 7 | C13: In addition, your company can execute all standard administration function. | E13: Limited | F13: 3 | G13: Must compromise on critical delivery or operational delivery, or both
A14: Advanced | B14: 9 | C14: In addition, your company can independently and setup and configure integration between PeopleSoft components, with interfacing systems and public interfaces, do troubleshooting. | E14: Restricted | F14: 4 | G14: To free up capacity we must compromise operations to a degree that it may impact CSIR's operations
A15: Expert | B15: 10 | C15: In addition, your company operates complete ERP environments, or can do advanced troubleshooting on integrating with interfacing systems and public interfaces, or both, only requiring assistance from Oracle in the event of a bug or software error. | E15: None | F15: 5 | G15: None
A17: Resources Capability (90% of Experience Score) | B17: Score | C17: Description (see GGAP Worksheet) | E17: ERP System Criticality | F17: Factor
A18: None | B18: 0 | C18: The resource requires direction in all aspects of the work. | E18: Low | F18: 25%
A19: Basic | B19: 5 | C19: The resource requires guidance to execute one or more of the relevant generally good administration practices. | E19: Medium | F19: 50%
A20: Proficient | B20: 7 | C20: The resource is fully capable of functioning independently in complying with the relevant generally good administration practices. | E20: High | F20: 75%
A21: Advanced | B21: 9 | C21: In addition, the resource can independently set up, configure, troubleshoot and optimise the performance of integrations between: • PeopleSoft components and public interfaces, e.g. Candidate Gateway • PeopleSoft and interfacing systems in the PeopleSoft-centred landscape • PeopleSoft and public interfaces, e.g. National Treasury | E21: Critical | F21: 100%
A22: Expert | B22: 10 | C22: In addition, the resource operates the complete ERP environment, can do advanced troubleshooting on integrating with interfacing systems and public interfaces, only requiring assistance from Oracle in the event of a bug or software error.
A24: Transition Plan Evaluation | B24: Score | C24: Description
A25: Does not meet expectations | B25: 0 | C25: The quality of the element/component/characteristic does not meet expectations
A26: Meets Expectations | B26: 5 | C26: The quality of the element/component/characteristic meets expectations
A27: Exceeds Expectations | B27: 10 | C27: The quality of the element/component/characteristic exceeds expectations

Sheet GGAP
A1: Generally Good Administration Practices
A3: General Best Practices: | C3: Application Administration:
A4: Change Management: Implement a robust change management process, ensuring changes are tested, approved, and documented. | C4: Regular Updates: Update applications regularly, especially for security patches.
A5: Incident Management: Have a well-defined process for handling incidents, ensuring timely response and recovery. | C5: User Management: Manage user roles and permissions diligently. Only grant access as needed.
A6: Training: Continuously train administrators on new technologies, security threats, and best practices. | C6: Monitoring and Logging: Monitor application performance and user activities. Ensure logs are comprehensive but avoid logging sensitive information.
A7: Vendor/Original Equipment Manufacturer Management: Regularly review and communicate with vendors about patches, updates, and known vulnerabilities. | C7: Performance Tuning: Monitor application performance and fine-tune configurations to ensure optimal performance.
A8: Automation: Wherever possible, automate repetitive tasks to reduce human errors. | C8: Backup and Recovery: Regularly backup application data and configurations. Test recovery processes.
A9: Auditing and Compliance: Regularly audit system and user activities. Ensure compliance with industry standards and regulations. | C9: Security: Implement security measures like HTTPS, input validation, output encoding, and secure session management.
A10: Principle of Least Privilege: Only give users and processes the permissions they need to perform their tasks. | C10: Configuration Management: Store configurations securely, preferably outside the codebase. Avoid hardcoding sensitive data.
C11: Testing: Regularly test the application for vulnerabilities and performance issues. Implement continuous integration and continuous development/deployment (CI/CD) pipelines if possible.
C12: Documentation: Maintain updated documentation about the application's architecture, dependencies, configurations, and customizations.
A14: Database Administration: | C14: Server Administration:
A15: Regular Backups: Ensure databases are backed up regularly, and test the restoration processes. | C15: Regular Updates and Patching: Ensure that the OS and software are kept up-to-date with the latest patches and updates.
A16: Performance Tuning: Monitor query performance, optimize indexes, and fine-tune configurations to ensure optimal performance. | C16: Monitoring: Use tools to monitor server health, performance metrics, and potential security threats.
A17: Security: Use strong authentication methods, encrypt sensitive data, and regularly audit access and actions. | C17: Backup: Implement regular backups and test the restoration process to ensure data integrity and availability.
A18: Data Integrity: Implement data validation checks, constraints, and referential integrity rules. | C18: User Management: Only grant necessary permissions and privileges. Use the principle of least privilege.
A19: Monitoring: Monitor database health, transaction rates, and error logs. | C19: Security: applying the principle of Least Privilege, Using a firewall to regulate incoming and outgoing traffic, Limiting open ports to only those necessary for your application, use of SSH Key, implement 2FA where feasible, especially for administrative access.
A20: Updates and Patching: Keep the database management system (DBMS) updated with the latest patches. | C20: Hardening: Disable unused services, ports, and protocols. Configure firewalls and intrusion detection systems.
A21: Disaster Recovery: Implement and test disaster recovery plans and high-availability setups like replication or clustering. | C21: Documentation: Maintain updated documentation regarding server configurations, installed software, and changes.
A22: Documentation: Document database schemas, relationships, stored procedures, and any custom configurations.

Sheet Summary Score
A1: Summary Score
A3: The Bidder Meets The Pre-qualification Requirements | B3: ='Mandatory Company Commitment'!C24 -> No
A5: Functional Factors | B5: Weight | C5: Score | D5: Weighted Score
A6: Company Experience | B6: 20 | C6: ='Company Experience'!F19*10 -> 0.00 | D6: =(B6/100)*C6 -> 0.00
A7: Primary Resource Expertise | B7: 35 | C7: ='Primary Resource'!F30*10 -> 0.00 | D7: =(B7/100)*C7 -> 0.00
A8: Secondary Resource Expertise | B8: 15 | C8: ='Secondary Resource'!F30*10 -> 0.00 | D8: 0.00
A9: Elective Company Commitment | B9: 20 | C9: ='Elective Company Commitment'!D24*10 -> 0.00 | D9: =(B9/100)*C9 -> 0.00
A10: Transition/Continuation Plan | B10: 10 | C10: =IF('Transition-Continuation Plan'!D21="","",'Transition-Continuation Plan'!D21)*10 -> 0.00 | D10: =(B10/100)*C10 -> 0.00
C11: Final Score out of 100 | D11: =SUM(D6:D10) -> 0.00

Sheet Mandatory Company Commitment
A1: Mandatory Company Commitment
A3: Scope of Work Cross Reference | B3: Mandatory Requirements (Pre-qualification requirements) | C3: Yes
B4: Bidders shall reference the detailed descriptions of the mandatory responsibilities/activities in the cross-referenced section of the RFP | C4: No
A5: B.3.2.1 | B5: Support and Administration
A6: B.3.2.1.a | B6: Maintaining the performance and availability of the environment in line with business requirements, including deploying enhancements and fixes from the developers into production and maintaining the synchronisation between the instances.
A7: B.3.2.1.b | B7: Implementing releases and changes in line with the CSIR's change control procedures, practices and policies.
A8: B.3.2.1.c | B8: Back up the environment per the CSIR Backup Procedure, successfully restore information on demand when required, and successfully recover the environment as part of the CSIR Disaster Recovery Simulations.
A9: B.3.2.1.d | B9: Performing the necessary support and administration of the environment during core business hours, being on standby for after-hours support and being available outside of core business hours for planned downtimes.
A10: B.3.2.1.e | B10: Adhering to Service Level Agreement (SLA) times on incidents and service request as agreed with the business and stipulated in the SLA agreement for several types of calls.
A11: B.3.2.1.f | B11: Performing and recording the necessary activities, controls and checks required from a PeopleSoft Apps DBA and Oracle DBA as part of generally good administration practices that will ensure compliance.
A12: B.3.2.1.g | B12: Creating, managing, maintaining, and administrating the integration points within the environment where other systems integrate with PeopleSoft.
A13: B.3.2.3 | B13: Collaboration and Communication
A14: B.3.2.3.a | B14: Sharing knowledge with CSIR colleagues that enables one or more colleagues with adequate working knowledge of operational activities such that they can replicate, support, and troubleshoot the environment
A15: B.3.2.4 | B15: Logistics
A16: B.3.2.4.a | B16: Commence within two weeks after the agreement is signed
A17: B.3.2.4.b | B17: The billable hours will commence once the resource is registered and given access to the systems.
A18: B.3.2.4.c | B18: Resourcing must be adequate to ensure continuity services for the scope of work.
A19: B.3.2.4.d | B19: Support and administration shall be available full-time during core business hours (08:00 – 16:30) Mon-Fri.
A20: B.3.2.4.e | B20: Support and administration shall be available on a standby basis after hours for any ad-hoc support such as to maximise the availability of the environment between 06:00 and 20:00 on workdays.
A21: B.3.2.4.f | B21: Operational services shall be available on an ad-hoc basis after hours for planned maintenance, upgrades and patching such as to maximise the availability of the environment between 06:00 and 20:00 on workdays.
A22: B.3.2.4.g | B22: All duties shall be performed in accordance with the relevant CSIR governance requirements.
A23: B.3.2.4.h | B23: Any rework due to the supplier’s fault will be done at the supplier’s expense
B24: The Bidder Meets The Pre-qualification Requirements | C24: =IF((COUNTIF(C6:C12,"No")+COUNTIF(C14:C14,"No")+COUNTIF(C16:C23,"No")+COUNTIF(C6:C12,"")+COUNTIF(C14:C14,"")+COUNTIF(C16:C23,""))>0,"No","Yes") -> No

Sheet Company Experience
A1: Company Experience
A3: Oracle PeopleSoft Component and Associated Activity | B3: Level of Expertise | C3: Years of Experience | D3: Score | E3: Weight | F3: Weight Score | H3: Weight Calculation (Not to be included in bidder submission template)
B4: Weight | C4: Weight | H4: CSIR In-house Capability | I4: CSIR In-house Capacity | J4: Systems Criticality | K4: Score | L4: Weight
B5: 0.9 | C5: 0.1
A6: Support and Administration of PeopleSoft Financial and Supply Chain Management (Application) | D6: =IF(OR(B6="",C6=""),"",$B$5*VLOOKUP(B6,Scoring!$A$11:$B$15,2,FALSE)+$C$5*VLOOKUP(C6,Scoring!$A$4:$B$8,2,FALSE)) ->  | E6: =L6 -> 6% | F6: =IF(D6="","",D6*E6) ->  | H6: Advanced | I6: Limited | J6: Critical | K6: =(IF(OR(H6="",I6="",J6=""),"",(VLOOKUP(H6,Scoring!$E$4:$F$8,2,FALSE)+VLOOKUP(I6,Scoring!$E$11:$F$15,2,FALSE))*VLOOKUP(J6,Scoring!$E$18:$F$21,2,FALSE))) -> 5 | L6: =IF(K6="","",$K6/SUM($K$6:$K$18)) -> 6%
A7: Support and Administration of PeopleSoft Human Capital Management (Application) | D7: =IF(OR(B7="",C7=""),"",$B$5*VLOOKUP(B7,Scoring!$A$11:$B$15,2,FALSE)+$C$5*VLOOKUP(C7,Scoring!$A$4:$B$8,2,FALSE)) ->  | E7: =L7 -> 6% | F7: =IF(D7="","",D7*E7) ->  | H7: Advanced | I7: Limited | J7: Critical | K7: =(IF(OR(H7="",I7="",J7=""),"",(VLOOKUP(H7,Scoring!$E$4:$F$8,2,FALSE)+VLOOKUP(I7,Scoring!$E$11:$F$15,2,FALSE))*VLOOKUP(J7,Scoring!$E$18:$F$21,2,FALSE))) -> 5 | L7: =IF(K7="","",$K7/SUM($K$6:$K$18)) -> 6%
A8: Support and Administration of PeopleSoft HCM - Candidate Gateway | D8: =IF(OR(B8="",C8=""),"",$B$5*VLOOKUP(B8,Scoring!$A$11:$B$15,2,FALSE)+$C$5*VLOOKUP(C8,Scoring!$A$4:$B$8,2,FALSE)) ->  | E8: 7% | H8: Basic | I8: Restricted | J8: High | K8: =(IF(OR(H8="",I8="",J8=""),"",(VLOOKUP(H8,Scoring!$E$4:$F$8,2,FALSE)+VLOOKUP(I8,Scoring!$E$11:$F$15,2,FALSE))*VLOOKUP(J8,Scoring!$E$18:$F$21,2,FALSE))) -> 6 | L8: 7%
A9: Support and Administration PeopleTools | D9: =IF(OR(B9="",C9=""),"",$B$5*VLOOKUP(B9,Scoring!$A$11:$B$15,2,FALSE)+$C$5*VLOOKUP(C9,Scoring!$A$4:$B$8,2,FALSE)) ->  | E9: 12% | H9: None | I9: None | J9: Critical | K9: =(IF(OR(H9="",I9="",J9=""),"",(VLOOKUP(H9,Scoring!$E$4:$F$8,2,FALSE)+VLOOKUP(I9,Scoring!$E$11:$F$15,2,FALSE))*VLOOKUP(J9,Scoring!$E$18:$F$21,2,FALSE))) -> 10 | L9: 12%
A10: Support and Administration of PeopleSoft Customer Relationship Management | D10: =IF(OR(B10="",C10=""),"",$B$5*VLOOKUP(B10,Scoring!$A$11:$B$15,2,FALSE)+$C$5*VLOOKUP(C10,Scoring!$A$4:$B$8,2,FALSE)) ->  | E10: 3% | H10: Basic | I10: None | J10: Low | K10: =(IF(OR(H10="",I10="",J10=""),"",(VLOOKUP(H10,Scoring!$E$4:$F$8,2,FALSE)+VLOOKUP(I10,Scoring!$E$11:$F$15,2,FALSE))*VLOOKUP(J10,Scoring!$E$18:$F$21,2,FALSE))) -> 2.25 | L10: 3%
A11: Support and Administration of Oracle Databases | D11: =IF(OR(B11="",C11=""),"",$B$5*VLOOKUP(B11,Scoring!$A$11:$B$15,2,FALSE)+$C$5*VLOOKUP(C11,Scoring!$A$4:$B$8,2,FALSE)) ->  | E11: 9% | H11: Proficient | I11: Restricted | J11: Critical | K11: =(IF(OR(H11="",I11="",J11=""),"",(VLOOKUP(H11,Scoring!$E$4:$F$8,2,FALSE)+VLOOKUP(I11,Scoring!$E$11:$F$15,2,FALSE))*VLOOKUP(J11,Scoring!$E$18:$F$21,2,FALSE))) -> 7 | L11: 9%
A12: Upgrading PeopleSoft Financial and Supply Chain Management | D12: =IF(OR(B12="",C12=""),"",$B$5*VLOOKUP(B12,Scoring!$A$11:$B$15,2,FALSE)+$C$5*VLOOKUP(C12,Scoring!$A$4:$B$8,2,FALSE)) ->  | E12: 9% | H12: None | I12: None | J12: High | K12: =(IF(OR(H12="",I12="",J12=""),"",(VLOOKUP(H12,Scoring!$E$4:$F$8,2,FALSE)+VLOOKUP(I12,Scoring!$E$11:$F$15,2,FALSE))*VLOOKUP(J12,Scoring!$E$18:$F$21,2,FALSE))) -> 7.5 | L12: 9%
A13: Upgrading PeopleSoft Human Capital Management | D13: =IF(OR(B13="",C13=""),"",$B$5*VLOOKUP(B13,Scoring!$A$11:$B$15,2,FALSE)+$C$5*VLOOKUP(C13,Scoring!$A$4:$B$8,2,FALSE)) ->  | E13: 9% | H13: None | I13: None | J13: High | K13: =(IF(OR(H13="",I13="",J13=""),"",(VLOOKUP(H13,Scoring!$E$4:$F$8,2,FALSE)+VLOOKUP(I13,Scoring!$E$11:$F$15,2,FALSE))*VLOOKUP(J13,Scoring!$E$18:$F$21,2,FALSE))) -> 7.5 | L13: 9%
A14: Upgrading PeopleSoft HCM - Candidate Gateway | D14: =IF(OR(B14="",C14=""),"",$B$5*VLOOKUP(B14,Scoring!$A$11:$B$15,2,FALSE)+$C$5*VLOOKUP(C14,Scoring!$A$4:$B$8,2,FALSE)) ->  | E14: 9% | H14: None | I14: None | J14: High | K14: =(IF(OR(H14="",I14="",J14=""),"",(VLOOKUP(H14,Scoring!$E$4:$F$8,2,FALSE)+VLOOKUP(I14,Scoring!$E$11:$F$15,2,FALSE))*VLOOKUP(J14,Scoring!$E$18:$F$21,2,FALSE))) -> 7.5 | L14: 9%
A15: Upgrading PeopleTools | D15: =IF(OR(B15="",C15=""),"",$B$5*VLOOKUP(B15,Scoring!$A$11:$B$15,2,FALSE)+$C$5*VLOOKUP(C15,Scoring!$A$4:$B$8,2,FALSE)) ->  | E15: 9% | H15: None | I15: None | J15: High | K15: =(IF(OR(H15="",I15="",J15=""),"",(VLOOKUP(H15,Scoring!$E$4:$F$8,2,FALSE)+VLOOKUP(I15,Scoring!$E$11:$F$15,2,FALSE))*VLOOKUP(J15,Scoring!$E$18:$F$21,2,FALSE))) -> 7.5 | L15: 9%
A16: Upgrading Oracle Databases | D16: =IF(OR(B16="",C16=""),"",$B$5*VLOOKUP(B16,Scoring!$A$11:$B$15,2,FALSE)+$C$5*VLOOKUP(C16,Scoring!$A$4:$B$8,2,FALSE)) ->  | E16: 4% | H16: Proficient | I16: Restricted | J16: Medium | K16: =(IF(OR(H16="",I16="",J16=""),"",(VLOOKUP(H16,Scoring!$E$4:$F$8,2,FALSE)+VLOOKUP(I16,Scoring!$E$11:$F$15,2,FALSE))*VLOOKUP(J16,Scoring!$E$18:$F$21,2,FALSE))) -> 3.5 | L16: 4%
A17: Upgrading Oracle Linux | D17: =IF(OR(B17="",C17=""),"",$B$5*VLOOKUP(B17,Scoring!$A$11:$B$15,2,FALSE)+$C$5*VLOOKUP(C17,Scoring!$A$4:$B$8,2,FALSE)) ->  | E17: 4% | H17: Proficient | I17: Restricted | J17: Medium | K17: =(IF(OR(H17="",I17="",J17=""),"",(VLOOKUP(H17,Scoring!$E$4:$F$8,2,FALSE)+VLOOKUP(I17,Scoring!$E$11:$F$15,2,FALSE))*VLOOKUP(J17,Scoring!$E$18:$F$21,2,FALSE))) -> 3.5 | L17: 4%
A18: Successfully maintaining high performance, highly available and up to date PeopleSoft environments | D18: =IF(OR(B18="",C18=""),"",$B$5*VLOOKUP(B18,Scoring!$A$11:$B$15,2,FALSE)+$C$5*VLOOKUP(C18,Scoring!$A$4:$B$8,2,FALSE)) ->  | E18: 12% | H18: None | I18: None | J18: Critical | K18: =(IF(OR(H18="",I18="",J18=""),"",(VLOOKUP(H18,Scoring!$E$4:$F$8,2,FALSE)+VLOOKUP(I18,Scoring!$E$11:$F$15,2,FALSE))*VLOOKUP(J18,Scoring!$E$18:$F$21,2,FALSE))) -> 10 | L18: 12%
E19: Total Score out of 10 | F19: =SUM(F6:F18) -> 0.00 | L19: =SUM(L6:L18) -> 100%

Sheet Customer References
A1: Customer References
A3: Customer references will be contacted to confirm the details in company experience
A4: Please limit the number of company references to six. You must at least add one reference. The references, together must cover the Company Experience detail.
A6: Customer Reference One - Name | D6: Reference(s) Name(s) | G6: Customer Reference Two - Name | J6: Reference(s) Name(s)
D8: Email address(es) | J8: Email address(es)
A10: Number of Users | B10: From (Year) | C10: To (Year) | D10: Mobile number s) | G10: Number of Users | H10: From (Year) | I10: To (Year) | J10: Mobile number s)
A12: Indicate which of the services listed in company experience was provided to the client | G12: Indicate which of the services listed in company experience was provided to the client
A13: Support and Administration of PS Financial and Supply Chain Management | D13: Upgrading PS Financial and Supply Chain Management | G13: Support and Administration of PS Financial and Supply Chain Management | J13: Upgrading PS Financial and Supply Chain Management
A14: Support and Administration of PeopleSoft Human Capital Management | D14: Upgrading PeopleSoft Human Capital Management | G14: Support and Administration of PeopleSoft Human Capital Management | J14: Upgrading PeopleSoft Human Capital Management
A15: Support and Administration of PS HCM - Candidate Gateway | D15: Upgrading PS HCM - Candidate Gateway | G15: Support and Administration of PS HCM - Candidate Gateway | J15: Upgrading PS HCM - Candidate Gateway
A16: Support and Administration PeopleTools | D16: Upgrading PeopleTools | G16: Support and Administration PeopleTools | J16: Upgrading PeopleTools
A17: Support and Administration of PS Customer Relationship Management | D17: Upgrading Oracle Databases | G17: Support and Administration of PS Customer Relationship Management | J17: Upgrading Oracle Databases
A18: Support and Administration of Oracle Databases | D18: Upgrading Oracle Linux | G18: Support and Administration of Oracle Databases | J18: Upgrading Oracle Linux
A19: Successfully maintaining high performance, highly available and up to date PeopleSoft environments | G19: Successfully maintaining high performance, highly available and up to date PeopleSoft environments
A22: Customer Reference Three - Name | D22: Reference(s) Name(s) | G22: Customer Reference Four - Name | J22: Reference(s) Name(s)
D24: Email address(es) | J24: Email address(es)
A26: Number of Users | B26: From (Year) | C26: To (Year) | D26: Mobile number s) | G26: Number of Users | H26: From (Year) | I26: To (Year) | J26: Mobile number s)
A28: Indicate which of the services listed in company experience was provided to the client | G28: Indicate which of the services listed in company experience was provided to the client
A29: Support and Administration of PS Financial and Supply Chain Management | D29: Upgrading PS Financial and Supply Chain Management | G29: Support and Administration of PS Financial and Supply Chain Management | J29: Upgrading PS Financial and Supply Chain Management
A30: Support and Administration of PeopleSoft Human Capital Management | D30: Upgrading PeopleSoft Human Capital Management | G30: Support and Administration of PeopleSoft Human Capital Management | J30: Upgrading PeopleSoft Human Capital Management
A31: Support and Administration of PS HCM - Candidate Gateway | D31: Upgrading PS HCM - Candidate Gateway | G31: Support and Administration of PS HCM - Candidate Gateway | J31: Upgrading PS HCM - Candidate Gateway
A32: Support and Administration PeopleTools | D32: Upgrading PeopleTools | G32: Support and Administration PeopleTools | J32: Upgrading PeopleTools
A33: Support and Administration of PS Customer Relationship Management | D33: Upgrading Oracle Databases | G33: Support and Administration of PS Customer Relationship Management | J33: Upgrading Oracle Databases
A34: Support and Administration of Oracle Databases | D34: Upgrading Oracle Linux | G34: Support and Administration of Oracle Databases | J34: Upgrading Oracle Linux
A35: Successfully maintaining high performance, highly available and up to date PeopleSoft environments | G35: Successfully maintaining high performance, highly available and up to date PeopleSoft environments
A38: Customer Reference Five - Name | D38: Reference(s) Name(s) | G38: Customer Reference Six - Name | J38: Reference(s) Name(s)
D40: Email address(es) | J40: Email address(es)
A42: Number of Users | B42: From (Year) | C42: To (Year) | D42: Mobile number s) | G42: Number of Users | H42: From (Year) | I42: To (Year) | J42: Mobile number s)
A44: Indicate which of the services listed in company experience was provided to the client | G44: Indicate which of the services listed in company experience was provided to the client
A45: Support and Administration of PS Financial and Supply Chain Management | D45: Upgrading PS Financial and Supply Chain Management | G45: Support and Administration of PS Financial and Supply Chain Management | J45: Upgrading PS Financial and Supply Chain Management
A46: Support and Administration of PeopleSoft Human Capital Management | D46: Upgrading PeopleSoft Human Capital Management | G46: Support and Administration of PeopleSoft Human Capital Management | J46: Upgrading PeopleSoft Human Capital Management
A47: Support and Administration of PS HCM - Candidate Gateway | D47: Upgrading PS HCM - Candidate Gateway | G47: Support and Administration of PS HCM - Candidate Gateway | J47: Upgrading PS HCM - Candidate Gateway
A48: Support and Administration PeopleTools | D48: Upgrading PeopleTools | G48: Support and Administration PeopleTools | J48: Upgrading PeopleTools
A49: Support and Administration of PS Customer Relationship Management | D49: Upgrading Oracle Databases | G49: Support and Administration of PS Customer Relationship Management | J49: Upgrading Oracle Databases
A50: Support and Administration of Oracle Databases | D50: Upgrading Oracle Linux | G50: Support and Administration of Oracle Databases | J50: Upgrading Oracle Linux
A51: Successfully maintaining high performance, highly available and up to date PeopleSoft environments | G51: Successfully maintaining high performance, highly available and up to date PeopleSoft environments

Sheet Primary Resource
A1: Primary Resource
A3: Oracle PeopleSoft Component and Associated Activity | B3: Level of Expertise | C3: Years of Experience | D3: Score | E3: Weight | F3: Weight Score | H3: Weight Calculation (Not to be included in bidder submission template)
B4: Weight | C4: Weight | H4: CSIR Capability | I4: CSIR Capacity | J4: Systems Criticality | K4: Score | L4: Weight
B5: 90% | C5: 10%
A6: PeopleTools | D6: =IF(OR(B6="",C6=""),"",$B$5*VLOOKUP(B6,Scoring!$A$11:$B$15,2,FALSE)+$C$5*VLOOKUP(C6,Scoring!$A$4:$B$8,2,FALSE)) ->  | E6: =L6 -> 7% | F6: =IF(D6="","",D6*E6) ->  | H6: Basic | I6: Restricted | J6: Critical | K6: =(IF(OR(H6="",I6="",J6=""),"",(VLOOKUP(H6,Scoring!$E$4:$F$8,2,FALSE)+VLOOKUP(I6,Scoring!$E$11:$F$15,2,FALSE))*VLOOKUP(J6,Scoring!$E$18:$F$21,2,FALSE))) -> 8 | L6: =IF(K6="","",$K6/SUM($K$6:$K$29)) -> 7%
A7: PS Application Server | D7: =IF(OR(B7="",C7=""),"",$B$5*VLOOKUP(B7,Scoring!$A$11:$B$15,2,FALSE)+$C$5*VLOOKUP(C7,Scoring!$A$4:$B$8,2,FALSE)) ->  | E7: 8% | H7: None | I7: None | J7: Critical | K7: =(IF(OR(H7="",I7="",J7=""),"",(VLOOKUP(H7,Scoring!$E$4:$F$8,2,FALSE)+VLOOKUP(I7,Scoring!$E$11:$F$15,2,FALSE))*VLOOKUP(J7,Scoring!$E$18:$F$21,2,FALSE))) -> 10 | L7: 8%
A8: Integration Broker | D8: =IF(OR(B8="",C8=""),"",$B$5*VLOOKUP(B8,Scoring!$A$11:$B$15,2,FALSE)+$C$5*VLOOKUP(C8,Scoring!$A$4:$B$8,2,FALSE)) ->  | E8: 7% | H8: Basic | I8: Restricted | J8: Critical | K8: =(IF(OR(H8="",I8="",J8=""),"",(VLOOKUP(H8,Scoring!$E$4:$F$8,2,FALSE)+VLOOKUP(I8,Scoring!$E$11:$F$15,2,FALSE))*VLOOKUP(J8,Scoring!$E$18:$F$21,2,FALSE))) -> 8 | L8: 7%
A9: PS Webserver | D9: =IF(OR(B9="",C9=""),"",$B$5*VLOOKUP(B9,Scoring!$A$11:$B$15,2,FALSE)+$C$5*VLOOKUP(C9,Scoring!$A$4:$B$8,2,FALSE)) ->  | E9: 8% | H9: None | I9: None | J9: Critical | K9: =(IF(OR(H9="",I9="",J9=""),"",(VLOOKUP(H9,Scoring!$E$4:$F$8,2,FALSE)+VLOOKUP(I9,Scoring!$E$11:$F$15,2,FALSE))*VLOOKUP(J9,Scoring!$E$18:$F$21,2,FALSE))) -> 10 | L9: 8%
A10: Oracle Databases | D10: =IF(OR(B10="",C10=""),"",$B$5*VLOOKUP(B10,Scoring!$A$11:$B$15,2,FALSE)+$C$5*VLOOKUP(C10,Scoring!$A$4:$B$8,2,FALSE)) ->  | E10: 8% | H10: None | I10: Restricted | J10: Critical | K10: =(IF(OR(H10="",I10="",J10=""),"",(VLOOKUP(H10,Scoring!$E$4:$F$8,2,FALSE)+VLOOKUP(I10,Scoring!$E$11:$F$15,2,FALSE))*VLOOKUP(J10,Scoring!$E$18:$F$21,2,FALSE))) -> 9 | L10: 8%
A11: Monitoring the ERP environment’s performance and availability | D11: =IF(OR(B11="",C11=""),"",$B$5*VLOOKUP(B11,Scoring!$A$11:$B$15,2,FALSE)+$C$5*VLOOKUP(C11,Scoring!$A$4:$B$8,2,FALSE)) ->  | E11: 4% | H11: Basic | I11: Limited | J11: High | K11: =(IF(OR(H11="",I11="",J11=""),"",(VLOOKUP(H11,Scoring!$E$4:$F$8,2,FALSE)+VLOOKUP(I11,Scoring!$E$11:$F$15,2,FALSE))*VLOOKUP(J11,Scoring!$E$18:$F$21,2,FALSE))) -> 5.25 | L11: 4%
A12: Performance tuning of the PS application components | D12: =IF(OR(B12="",C12=""),"",$B$5*VLOOKUP(B12,Scoring!$A$11:$B$15,2,FALSE)+$C$5*VLOOKUP(C12,Scoring!$A$4:$B$8,2,FALSE)) ->  | E12: 4% | H12: None | I12: Restricted | J12: Medium | K12: =(IF(OR(H12="",I12="",J12=""),"",(VLOOKUP(H12,Scoring!$E$4:$F$8,2,FALSE)+VLOOKUP(I12,Scoring!$E$11:$F$15,2,FALSE))*VLOOKUP(J12,Scoring!$E$18:$F$21,2,FALSE))) -> 4.5 | L12: 4%
A13: Performance tuning of the Oracle databases | D13: =IF(OR(B13="",C13=""),"",$B$5*VLOOKUP(B13,Scoring!$A$11:$B$15,2,FALSE)+$C$5*VLOOKUP(C13,Scoring!$A$4:$B$8,2,FALSE)) ->  | E13: 3% | H13: Basic | I13: Limited | J13: Medium | K13: =(IF(OR(H13="",I13="",J13=""),"",(VLOOKUP(H13,Scoring!$E$4:$F$8,2,FALSE)+VLOOKUP(I13,Scoring!$E$11:$F$15,2,FALSE))*VLOOKUP(J13,Scoring!$E$18:$F$21,2,FALSE))) -> 3.5 | L13: 3%
A14: Successfully maintaining high performance, highly available and up to date PeopleSoft environments | D14: =IF(OR(B14="",C14=""),"",$B$5*VLOOKUP(B14,Scoring!$A$11:$B$15,2,FALSE)+$C$5*VLOOKUP(C14,Scoring!$A$4:$B$8,2,FALSE)) ->  | E14: 6% | H14: None | I14: None | J14: High | K14: =(IF(OR(H14="",I14="",J14=""),"",(VLOOKUP(H14,Scoring!$E$4:$F$8,2,FALSE)+VLOOKUP(I14,Scoring!$E$11:$F$15,2,FALSE))*VLOOKUP(J14,Scoring!$E$18:$F$21,2,FALSE))) -> 7.5 | L14: 6%
A15: Oracle Linux | D15: =IF(OR(B15="",C15=""),"",$B$5*VLOOKUP(B15,Scoring!$A$11:$B$15,2,FALSE)+$C$5*VLOOKUP(C15,Scoring!$A$4:$B$8,2,FALSE)) ->  | E15: 3% | H15: Proficient | I15: Restricted | J15: Medium | K15: =(IF(OR(H15="",I15="",J15=""),"",(VLOOKUP(H15,Scoring!$E$4:$F$8,2,FALSE)+VLOOKUP(I15,Scoring!$E$11:$F$15,2,FALSE))*VLOOKUP(J15,Scoring!$E$18:$F$21,2,FALSE))) -> 3.5 | L15: 3%
A16: Patching Peoplesoft Application Components | D16: =IF(OR(B16="",C16=""),"",$B$5*VLOOKUP(B16,Scoring!$A$11:$B$15,2,FALSE)+$C$5*VLOOKUP(C16,Scoring!$A$4:$B$8,2,FALSE)) ->  | E16: 4% | H16: None | I16: None | J16: Medium | K16: =(IF(OR(H16="",I16="",J16=""),"",(VLOOKUP(H16,Scoring!$E$4:$F$8,2,FALSE)+VLOOKUP(I16,Scoring!$E$11:$F$15,2,FALSE))*VLOOKUP(J16,Scoring!$E$18:$F$21,2,FALSE))) -> 5 | L16: 4%
A17: Patching Oracle Databases | D17: =IF(OR(B17="",C17=""),"",$B$5*VLOOKUP(B17,Scoring!$A$11:$B$15,2,FALSE)+$C$5*VLOOKUP(C17,Scoring!$A$4:$B$8,2,FALSE)) ->  | E17: 3% | H17: Proficient | I17: Restricted | J17: Medium | K17: =(IF(OR(H17="",I17="",J17=""),"",(VLOOKUP(H17,Scoring!$E$4:$F$8,2,FALSE)+VLOOKUP(I17,Scoring!$E$11:$F$15,2,FALSE))*VLOOKUP(J17,Scoring!$E$18:$F$21,2,FALSE))) -> 3.5 | L17: 3%
A18: Patching Oracle Linux Servers, | D18: =IF(OR(B18="",C18=""),"",$B$5*VLOOKUP(B18,Scoring!$A$11:$B$15,2,FALSE)+$C$5*VLOOKUP(C18,Scoring!$A$4:$B$8,2,FALSE)) ->  | E18: 3% | H18: Proficient | I18: Limited | J18: Medium | K18: =(IF(OR(H18="",I18="",J18=""),"",(VLOOKUP(H18,Scoring!$E$4:$F$8,2,FALSE)+VLOOKUP(I18,Scoring!$E$11:$F$15,2,FALSE))*VLOOKUP(J18,Scoring!$E$18:$F$21,2,FALSE))) -> 3 | L18: 3%
A19: Backing up PS Applications, Oracle databases and Oracle Linux Servers | D19: =IF(OR(B19="",C19=""),"",$B$5*VLOOKUP(B19,Scoring!$A$11:$B$15,2,FALSE)+$C$5*VLOOKUP(C19,Scoring!$A$4:$B$8,2,FALSE)) ->  | E19: 1% | H19: Advanced | I19: Dedicated | J19: High | K19: =(IF(OR(H19="",I19="",J19=""),"",(VLOOKUP(H19,Scoring!$E$4:$F$8,2,FALSE)+VLOOKUP(I19,Scoring!$E$11:$F$15,2,FALSE))*VLOOKUP(J19,Scoring!$E$18:$F$21,2,FALSE))) -> 1.5 | L19: 1%
A20: Restoring Oracle database and databases tables | D20: =IF(OR(B20="",C20=""),"",$B$5*VLOOKUP(B20,Scoring!$A$11:$B$15,2,FALSE)+$C$5*VLOOKUP(C20,Scoring!$A$4:$B$8,2,FALSE)) ->  | E20: 3% | H20: Proficient | I20: Limited | J20: Medium | K20: =(IF(OR(H20="",I20="",J20=""),"",(VLOOKUP(H20,Scoring!$E$4:$F$8,2,FALSE)+VLOOKUP(I20,Scoring!$E$11:$F$15,2,FALSE))*VLOOKUP(J20,Scoring!$E$18:$F$21,2,FALSE))) -> 3 | L20: 3%
A21: Disaster recovery simulations | D21: =IF(OR(B21="",C21=""),"",$B$5*VLOOKUP(B21,Scoring!$A$11:$B$15,2,FALSE)+$C$5*VLOOKUP(C21,Scoring!$A$4:$B$8,2,FALSE)) ->  | E21: 4% | H21: None | I21: Restricted | J21: Medium | K21: =(IF(OR(H21="",I21="",J21=""),"",(VLOOKUP(H21,Scoring!$E$4:$F$8,2,FALSE)+VLOOKUP(I21,Scoring!$E$11:$F$15,2,FALSE))*VLOOKUP(J21,Scoring!$E$18:$F$21,2,FALSE))) -> 4.5 | L21: 4%
A22: Major version upgrades for PS applications/components (PS HCM) | D22: =IF(OR(B22="",C22=""),"",$B$5*VLOOKUP(B22,Scoring!$A$11:$B$15,2,FALSE)+$C$5*VLOOKUP(C22,Scoring!$A$4:$B$8,2,FALSE)) ->  | E22: 4% | H22: None | I22: None | J22: Medium | K22: =(IF(OR(H22="",I22="",J22=""),"",(VLOOKUP(H22,Scoring!$E$4:$F$8,2,FALSE)+VLOOKUP(I22,Scoring!$E$11:$F$15,2,FALSE))*VLOOKUP(J22,Scoring!$E$18:$F$21,2,FALSE))) -> 5 | L22: 4%
A23: Major version upgrades for PeopleTools | D23: =IF(OR(B23="",C23=""),"",$B$5*VLOOKUP(B23,Scoring!$A$11:$B$15,2,FALSE)+$C$5*VLOOKUP(C23,Scoring!$A$4:$B$8,2,FALSE)) ->  | E23: 4% | H23: None | I23: None | J23: Medium | K23: =(IF(OR(H23="",I23="",J23=""),"",(VLOOKUP(H23,Scoring!$E$4:$F$8,2,FALSE)+VLOOKUP(I23,Scoring!$E$11:$F$15,2,FALSE))*VLOOKUP(J23,Scoring!$E$18:$F$21,2,FALSE))) -> 5 | L23: 4%
A24: Major version upgrades for Oracle Databases | D24: =IF(OR(B24="",C24=""),"",$B$5*VLOOKUP(B24,Scoring!$A$11:$B$15,2,FALSE)+$C$5*VLOOKUP(C24,Scoring!$A$4:$B$8,2,FALSE)) ->  | E24: 1% | H24: Proficient | I24: Restricted | J24: Low | K24: =(IF(OR(H24="",I24="",J24=""),"",(VLOOKUP(H24,Scoring!$E$4:$F$8,2,FALSE)+VLOOKUP(I24,Scoring!$E$11:$F$15,2,FALSE))*VLOOKUP(J24,Scoring!$E$18:$F$21,2,FALSE))) -> 1.75 | L24: 1%
A25: Major version upgrades for Oracle Linux | D25: =IF(OR(B25="",C25=""),"",$B$5*VLOOKUP(B25,Scoring!$A$11:$B$15,2,FALSE)+$C$5*VLOOKUP(C25,Scoring!$A$4:$B$8,2,FALSE)) ->  | E25: 1% | H25: Proficient | I25: Restricted | J25: Low | K25: =(IF(OR(H25="",I25="",J25=""),"",(VLOOKUP(H25,Scoring!$E$4:$F$8,2,FALSE)+VLOOKUP(I25,Scoring!$E$11:$F$15,2,FALSE))*VLOOKUP(J25,Scoring!$E$18:$F$21,2,FALSE))) -> 1.75 | L25: 1%
A26: Minor version upgrades for PS applications/components (PS HCM) | D26: =IF(OR(B26="",C26=""),"",$B$5*VLOOKUP(B26,Scoring!$A$11:$B$15,2,FALSE)+$C$5*VLOOKUP(C26,Scoring!$A$4:$B$8,2,FALSE)) ->  | E26: 4% | H26: None | I26: None | J26: Medium | K26: =(IF(OR(H26="",I26="",J26=""),"",(VLOOKUP(H26,Scoring!$E$4:$F$8,2,FALSE)+VLOOKUP(I26,Scoring!$E$11:$F$15,2,FALSE))*VLOOKUP(J26,Scoring!$E$18:$F$21,2,FALSE))) -> 5 | L26: 4%
A27: Minor version upgrades for PeopleTools | D27: =IF(OR(B27="",C27=""),"",$B$5*VLOOKUP(B27,Scoring!$A$11:$B$15,2,FALSE)+$C$5*VLOOKUP(C27,Scoring!$A$4:$B$8,2,FALSE)) ->  | E27: 4% | H27: None | I27: None | J27: Medium | K27: =(IF(OR(H27="",I27="",J27=""),"",(VLOOKUP(H27,Scoring!$E$4:$F$8,2,FALSE)+VLOOKUP(I27,Scoring!$E$11:$F$15,2,FALSE))*VLOOKUP(J27,Scoring!$E$18:$F$21,2,FALSE))) -> 5 | L27: =IF(K27="","",$K27/SUM($K$6:$K$29)) -> 4%
A28: Minor version upgrades for Oracle Databases | D28: =IF(OR(B28="",C28=""),"",$B$5*VLOOKUP(B28,Scoring!$A$11:$B$15,2,FALSE)+$C$5*VLOOKUP(C28,Scoring!$A$4:$B$8,2,FALSE)) ->  | E28: 3% | H28: Proficient | I28: Restricted | J28: Medium | K28: =(IF(OR(H28="",I28="",J28=""),"",(VLOOKUP(H28,Scoring!$E$4:$F$8,2,FALSE)+VLOOKUP(I28,Scoring!$E$11:$F$15,2,FALSE))*VLOOKUP(J28,Scoring!$E$18:$F$21,2,FALSE))) -> 3.5 | L28: =IF(K28="","",$K28/SUM($K$6:$K$29)) -> 3%
A29: Deploying Oracle Linux servers on VMware and configuring VMware to meet server requirements | D29: =IF(OR(B29="",C29=""),"",$B$5*VLOOKUP(B29,Scoring!$A$11:$B$15,2,FALSE)+$C$5*VLOOKUP(C29,Scoring!$A$4:$B$8,2,FALSE)) ->  | E29: 1% | H29: Proficient | I29: Limited | J29: Low | K29: =(IF(OR(H29="",I29="",J29=""),"",(VLOOKUP(H29,Scoring!$E$4:$F$8,2,FALSE)+VLOOKUP(I29,Scoring!$E$11:$F$15,2,FALSE))*VLOOKUP(J29,Scoring!$E$18:$F$21,2,FALSE))) -> 1.5 | L29: 1%
E30: Total Score out of 10 | F30: =SUM(F6:F29) -> 0.0 | L30: =SUM(L6:L29) -> 100%

Sheet Secondary Resource
A1: Secondary Resource
A3: Oracle PeopleSoft Component and Associated Activity | B3: Level of Expertise | C3: Years of Experience | D3: Score | E3: Weight | F3: Weight Score | H3: Weight Calculation (Not to be included in bidder submission template)
B4: Weight | C4: Weight | H4: CSIR Capability | I4: CSIR Capacity | J4: Systems Criticality | K4: Score | L4: Weight
B5: 90% | C5: 10%
A6: PeopleTools | D6: =IF(OR(B6="",C6=""),"",$B$5*VLOOKUP(B6,Scoring!$A$11:$B$15,2,FALSE)+$C$5*VLOOKUP(C6,Scoring!$A$4:$B$8,2,FALSE)) ->  | E6: =L6 -> 6% | F6: =IF(D6="","",D6*E6) ->  | H6: Basic | I6: Restricted | J6: Critical | K6: =(IF(OR(H6="",I6="",J6=""),"",(VLOOKUP(H6,Scoring!$E$4:$F$8,2,FALSE)+VLOOKUP(I6,Scoring!$E$11:$F$15,2,FALSE))*VLOOKUP(J6,Scoring!$E$18:$F$21,2,FALSE))) -> 8 | L6: =IF(K6="","",$K6/SUM($K$6:$K$29)) -> 6%
A7: PS Application Server | D7: =IF(OR(B7="",C7=""),"",$B$5*VLOOKUP(B7,Scoring!$A$11:$B$15,2,FALSE)+$C$5*VLOOKUP(C7,Scoring!$A$4:$B$8,2,FALSE)) ->  | E7: 8% | H7: None | I7: None | J7: Critical | K7: =(IF(OR(H7="",I7="",J7=""),"",(VLOOKUP(H7,Scoring!$E$4:$F$8,2,FALSE)+VLOOKUP(I7,Scoring!$E$11:$F$15,2,FALSE))*VLOOKUP(J7,Scoring!$E$18:$F$21,2,FALSE))) -> 10 | L7: 8%
A8: Integration Broker | D8: =IF(OR(B8="",C8=""),"",$B$5*VLOOKUP(B8,Scoring!$A$11:$B$15,2,FALSE)+$C$5*VLOOKUP(C8,Scoring!$A$4:$B$8,2,FALSE)) ->  | E8: 6% | H8: Basic | I8: Restricted | J8: Critical | K8: =(IF(OR(H8="",I8="",J8=""),"",(VLOOKUP(H8,Scoring!$E$4:$F$8,2,FALSE)+VLOOKUP(I8,Scoring!$E$11:$F$15,2,FALSE))*VLOOKUP(J8,Scoring!$E$18:$F$21,2,FALSE))) -> 8 | L8: 6%
A9: PS Webserver | D9: =IF(OR(B9="",C9=""),"",$B$5*VLOOKUP(B9,Scoring!$A$11:$B$15,2,FALSE)+$C$5*VLOOKUP(C9,Scoring!$A$4:$B$8,2,FALSE)) ->  | E9: 8% | H9: None | I9: None | J9: Critical | K9: =(IF(OR(H9="",I9="",J9=""),"",(VLOOKUP(H9,Scoring!$E$4:$F$8,2,FALSE)+VLOOKUP(I9,Scoring!$E$11:$F$15,2,FALSE))*VLOOKUP(J9,Scoring!$E$18:$F$21,2,FALSE))) -> 10 | L9: 8%
A10: Oracle Databases | D10: =IF(OR(B10="",C10=""),"",$B$5*VLOOKUP(B10,Scoring!$A$11:$B$15,2,FALSE)+$C$5*VLOOKUP(C10,Scoring!$A$4:$B$8,2,FALSE)) ->  | E10: 7% | H10: None | I10: Restricted | J10: Critical | K10: =(IF(OR(H10="",I10="",J10=""),"",(VLOOKUP(H10,Scoring!$E$4:$F$8,2,FALSE)+VLOOKUP(I10,Scoring!$E$11:$F$15,2,FALSE))*VLOOKUP(J10,Scoring!$E$18:$F$21,2,FALSE))) -> 9 | L10: 7%
A11: Monitoring the ERP environment’s performance and availability | D11: =IF(OR(B11="",C11=""),"",$B$5*VLOOKUP(B11,Scoring!$A$11:$B$15,2,FALSE)+$C$5*VLOOKUP(C11,Scoring!$A$4:$B$8,2,FALSE)) ->  | E11: 4% | H11: Basic | I11: Limited | J11: High | K11: =(IF(OR(H11="",I11="",J11=""),"",(VLOOKUP(H11,Scoring!$E$4:$F$8,2,FALSE)+VLOOKUP(I11,Scoring!$E$11:$F$15,2,FALSE))*VLOOKUP(J11,Scoring!$E$18:$F$21,2,FALSE))) -> 5.25 | L11: 4%
A12: Performance tuning of the PS application components | D12: =IF(OR(B12="",C12=""),"",$B$5*VLOOKUP(B12,Scoring!$A$11:$B$15,2,FALSE)+$C$5*VLOOKUP(C12,Scoring!$A$4:$B$8,2,FALSE)) ->  | E12: 4% | H12: None | I12: Restricted | J12: Medium | K12: =(IF(OR(H12="",I12="",J12=""),"",(VLOOKUP(H12,Scoring!$E$4:$F$8,2,FALSE)+VLOOKUP(I12,Scoring!$E$11:$F$15,2,FALSE))*VLOOKUP(J12,Scoring!$E$18:$F$21,2,FALSE))) -> 4.5 | L12: 4%
A13: Performance tuning of the Oracle databases | D13: =IF(OR(B13="",C13=""),"",$B$5*VLOOKUP(B13,Scoring!$A$11:$B$15,2,FALSE)+$C$5*VLOOKUP(C13,Scoring!$A$4:$B$8,2,FALSE)) ->  | E13: 3% | H13: Basic | I13: Limited | J13: Medium | K13: =(IF(OR(H13="",I13="",J13=""),"",(VLOOKUP(H13,Scoring!$E$4:$F$8,2,FALSE)+VLOOKUP(I13,Scoring!$E$11:$F$15,2,FALSE))*VLOOKUP(J13,Scoring!$E$18:$F$21,2,FALSE))) -> 3.5 | L13: 3%
A14: Successfully maintaining high performance, highly available and up to date PeopleSoft environments | D14: =IF(OR(B14="",C14=""),"",$B$5*VLOOKUP(B14,Scoring!$A$11:$B$15,2,FALSE)+$C$5*VLOOKUP(C14,Scoring!$A$4:$B$8,2,FALSE)) ->  | E14: 8% | H14: None | I14: None | J14: Critical | K14: =(IF(OR(H14="",I14="",J14=""),"",(VLOOKUP(H14,Scoring!$E$4:$F$8,2,FALSE)+VLOOKUP(I14,Scoring!$E$11:$F$15,2,FALSE))*VLOOKUP(J14,Scoring!$E$18:$F$21,2,FALSE))) -> 10 | L14: 8%
A15: Oracle Linux | D15: =IF(OR(B15="",C15=""),"",$B$5*VLOOKUP(B15,Scoring!$A$11:$B$15,2,FALSE)+$C$5*VLOOKUP(C15,Scoring!$A$4:$B$8,2,FALSE)) ->  | E15: 3% | H15: Proficient | I15: Restricted | J15: Medium | K15: =(IF(OR(H15="",I15="",J15=""),"",(VLOOKUP(H15,Scoring!$E$4:$F$8,2,FALSE)+VLOOKUP(I15,Scoring!$E$11:$F$15,2,FALSE))*VLOOKUP(J15,Scoring!$E$18:$F$21,2,FALSE))) -> 3.5 | L15: 3%
A16: Patching Peoplesoft Application Components | D16: =IF(OR(B16="",C16=""),"",$B$5*VLOOKUP(B16,Scoring!$A$11:$B$15,2,FALSE)+$C$5*VLOOKUP(C16,Scoring!$A$4:$B$8,2,FALSE)) ->  | E16: 4% | H16: None | I16: None | J16: Medium | K16: =(IF(OR(H16="",I16="",J16=""),"",(VLOOKUP(H16,Scoring!$E$4:$F$8,2,FALSE)+VLOOKUP(I16,Scoring!$E$11:$F$15,2,FALSE))*VLOOKUP(J16,Scoring!$E$18:$F$21,2,FALSE))) -> 5 | L16: 4%
A17: Patching Oracle Databases | D17: =IF(OR(B17="",C17=""),"",$B$5*VLOOKUP(B17,Scoring!$A$11:$B$15,2,FALSE)+$C$5*VLOOKUP(C17,Scoring!$A$4:$B$8,2,FALSE)) ->  | E17: 3% | H17: Proficient | I17: Restricted | J17: Medium | K17: =(IF(OR(H17="",I17="",J17=""),"",(VLOOKUP(H17,Scoring!$E$4:$F$8,2,FALSE)+VLOOKUP(I17,Scoring!$E$11:$F$15,2,FALSE))*VLOOKUP(J17,Scoring!$E$18:$F$21,2,FALSE))) -> 3.5 | L17: 3%
A18: Patching Oracle Linux Servers, | D18: =IF(OR(B18="",C18=""),"",$B$5*VLOOKUP(B18,Scoring!$A$11:$B$15,2,FALSE)+$C$5*VLOOKUP(C18,Scoring!$A$4:$B$8,2,FALSE)) ->  | E18: 2% | H18: Proficient | I18: Limited | J18: Medium | K18: =(IF(OR(H18="",I18="",J18=""),"",(VLOOKUP(H18,Scoring!$E$4:$F$8,2,FALSE)+VLOOKUP(I18,Scoring!$E$11:$F$15,2,FALSE))*VLOOKUP(J18,Scoring!$E$18:$F$21,2,FALSE))) -> 3 | L18: 2%
A19: Backing up PS Applications, Oracle databases and Oracle Linux Servers | D19: =IF(OR(B19="",C19=""),"",$B$5*VLOOKUP(B19,Scoring!$A$11:$B$15,2,FALSE)+$C$5*VLOOKUP(C19,Scoring!$A$4:$B$8,2,FALSE)) ->  | E19: 1% | H19: Advanced | I19: Dedicated | J19: High | K19: =(IF(OR(H19="",I19="",J19=""),"",(VLOOKUP(H19,Scoring!$E$4:$F$8,2,FALSE)+VLOOKUP(I19,Scoring!$E$11:$F$15,2,FALSE))*VLOOKUP(J19,Scoring!$E$18:$F$21,2,FALSE))) -> 1.5 | L19: 1%
A20: Restoring Oracle database and databases tables | D20: =IF(OR(B20="",C20=""),"",$B$5*VLOOKUP(B20,Scoring!$A$11:$B$15,2,FALSE)+$C$5*VLOOKUP(C20,Scoring!$A$4:$B$8,2,FALSE)) ->  | E20: 2% | H20: Proficient | I20: Limited | J20: Medium | K20: =(IF(OR(H20="",I20="",J20=""),"",(VLOOKUP(H20,Scoring!$E$4:$F$8,2,FALSE)+VLOOKUP(I20,Scoring!$E$11:$F$15,2,FALSE))*VLOOKUP(J20,Scoring!$E$18:$F$21,2,FALSE))) -> 3 | L20: 2%
A21: Disaster recovery simulations | D21: =IF(OR(B21="",C21=""),"",$B$5*VLOOKUP(B21,Scoring!$A$11:$B$15,2,FALSE)+$C$5*VLOOKUP(C21,Scoring!$A$4:$B$8,2,FALSE)) ->  | E21: 4% | H21: None | I21: Restricted | J21: Medium | K21: =(IF(OR(H21="",I21="",J21=""),"",(VLOOKUP(H21,Scoring!$E$4:$F$8,2,FALSE)+VLOOKUP(I21,Scoring!$E$11:$F$15,2,FALSE))*VLOOKUP(J21,Scoring!$E$18:$F$21,2,FALSE))) -> 4.5 | L21: 4%
A22: Major version upgrades for PS applications/components (PS HCM) | D22: =IF(OR(B22="",C22=""),"",$B$5*VLOOKUP(B22,Scoring!$A$11:$B$15,2,FALSE)+$C$5*VLOOKUP(C22,Scoring!$A$4:$B$8,2,FALSE)) ->  | E22: 4% | H22: None | I22: None | J22: Medium | K22: =(IF(OR(H22="",I22="",J22=""),"",(VLOOKUP(H22,Scoring!$E$4:$F$8,2,FALSE)+VLOOKUP(I22,Scoring!$E$11:$F$15,2,FALSE))*VLOOKUP(J22,Scoring!$E$18:$F$21,2,FALSE))) -> 5 | L22: 4%
A23: Major version upgrades for PeopleTools | D23: =IF(OR(B23="",C23=""),"",$B$5*VLOOKUP(B23,Scoring!$A$11:$B$15,2,FALSE)+$C$5*VLOOKUP(C23,Scoring!$A$4:$B$8,2,FALSE)) ->  | E23: 6% | H23: None | I23: None | J23: High | K23: =(IF(OR(H23="",I23="",J23=""),"",(VLOOKUP(H23,Scoring!$E$4:$F$8,2,FALSE)+VLOOKUP(I23,Scoring!$E$11:$F$15,2,FALSE))*VLOOKUP(J23,Scoring!$E$18:$F$21,2,FALSE))) -> 7.5 | L23: 6%
A24: Major version upgrades for Oracle Databases | D24: =IF(OR(B24="",C24=""),"",$B$5*VLOOKUP(B24,Scoring!$A$11:$B$15,2,FALSE)+$C$5*VLOOKUP(C24,Scoring!$A$4:$B$8,2,FALSE)) ->  | E24: 1% | H24: Proficient | I24: Restricted | J24: Low | K24: =(IF(OR(H24="",I24="",J24=""),"",(VLOOKUP(H24,Scoring!$E$4:$F$8,2,FALSE)+VLOOKUP(I24,Scoring!$E$11:$F$15,2,FALSE))*VLOOKUP(J24,Scoring!$E$18:$F$21,2,FALSE))) -> 1.75 | L24: 1%
A25: Major version upgrades for Oracle Linux | D25: =IF(OR(B25="",C25=""),"",$B$5*VLOOKUP(B25,Scoring!$A$11:$B$15,2,FALSE)+$C$5*VLOOKUP(C25,Scoring!$A$4:$B$8,2,FALSE)) ->  | E25: 1% | H25: Proficient | I25: Restricted | J25: Low | K25: =(IF(OR(H25="",I25="",J25=""),"",(VLOOKUP(H25,Scoring!$E$4:$F$8,2,FALSE)+VLOOKUP(I25,Scoring!$E$11:$F$15,2,FALSE))*VLOOKUP(J25,Scoring!$E$18:$F$21,2,FALSE))) -> 1.75 | L25: 1%
A26: Minor version upgrades for PS applications/components (PS HCM) | D26: =IF(OR(B26="",C26=""),"",$B$5*VLOOKUP(B26,Scoring!$A$11:$B$15,2,FALSE)+$C$5*VLOOKUP(C26,Scoring!$A$4:$B$8,2,FALSE)) ->  | E26: 6% | H26: None | I26: None | J26: High | K26: =(IF(OR(H26="",I26="",J26=""),"",(VLOOKUP(H26,Scoring!$E$4:$F$8,2,FALSE)+VLOOKUP(I26,Scoring!$E$11:$F$15,2,FALSE))*VLOOKUP(J26,Scoring!$E$18:$F$21,2,FALSE))) -> 7.5 | L26: 6%
A27: Minor version upgrades for PeopleTools | D27: =IF(OR(B27="",C27=""),"",$B$5*VLOOKUP(B27,Scoring!$A$11:$B$15,2,FALSE)+$C$5*VLOOKUP(C27,Scoring!$A$4:$B$8,2,FALSE)) ->  | E27: 4% | H27: None | I27: None | J27: Medium | K27: =(IF(OR(H27="",I27="",J27=""),"",(VLOOKUP(H27,Scoring!$E$4:$F$8,2,FALSE)+VLOOKUP(I27,Scoring!$E$11:$F$15,2,FALSE))*VLOOKUP(J27,Scoring!$E$18:$F$21,2,FALSE))) -> 5 | L27: =IF(K27="","",$K27/SUM($K$6:$K$29)) -> 4%
A28: Minor version upgrades for Oracle Databases | D28: =IF(OR(B28="",C28=""),"",$B$5*VLOOKUP(B28,Scoring!$A$11:$B$15,2,FALSE)+$C$5*VLOOKUP(C28,Scoring!$A$4:$B$8,2,FALSE)) ->  | E28: 3% | H28: Proficient | I28: Restricted | J28: Medium | K28: =(IF(OR(H28="",I28="",J28=""),"",(VLOOKUP(H28,Scoring!$E$4:$F$8,2,FALSE)+VLOOKUP(I28,Scoring!$E$11:$F$15,2,FALSE))*VLOOKUP(J28,Scoring!$E$18:$F$21,2,FALSE))) -> 3.5 | L28: =IF(K28="","",$K28/SUM($K$6:$K$29)) -> 3%
A29: Deploying Oracle Linux servers on VMware and configuring VMware to meet server requirements | D29: =IF(OR(B29="",C29=""),"",$B$5*VLOOKUP(B29,Scoring!$A$11:$B$15,2,FALSE)+$C$5*VLOOKUP(C29,Scoring!$A$4:$B$8,2,FALSE)) ->  | E29: 1% | H29: Proficient | I29: Limited | J29: Low | K29: =(IF(OR(H29="",I29="",J29=""),"",(VLOOKUP(H29,Scoring!$E$4:$F$8,2,FALSE)+VLOOKUP(I29,Scoring!$E$11:$F$15,2,FALSE))*VLOOKUP(J29,Scoring!$E$18:$F$21,2,FALSE))) -> 1.5 | L29: 1%
E30: Total Score out of 10 | F30: =SUM(F6:F29) -> 0.0 | L30: =SUM(L6:L29) -> 100%

Sheet Elective Company Commitment
A1: Elective Company Commitment
A3: Scope of Work Cross Reference | B3: Responsibilities/Activities | C3: Weight | D3: Yes
B4: Bidders shall reference the detailed descriptions of the responsibilities/activities in the cross-referenced section of the RFP | D4: No
A5: B.3.2.1 | B5: Support and Administration | C5: =SUM(C6:C11) -> 39%
A6: B.3.2.1.h | B6: Participating in audits by providing required artefacts, coordinating and gathering the needed information and being available to answer the auditors' questions. | C6: 3%
A7: B.3.2.1.i | B7: Advanced troubleshooting and problem-solving specifically tailored to handle bespoke configurations within and between PeopleSoft and interfacing systems whether documented or not. | C7: 15%
A8: B.3.2.1.j | B8: Deploying new and transitory PeopleSoft and Oracle database instances as required. | C8: 3%
A9: B.3.2.1.k | B9: Participating in deploying new PeopleSoft functionality and taking responsibility for PeopleSoft application administration activities. | C9: 3%
A10: B.3.2.1.l | B10: Producing innovative ways to improve the performance and availability of the environment, automate activities and processes and process reviews. | C10: 10%
A11: B.3.2.1.m | B11: Documenting and maintaining scripts, configurations, procedures and work instructions. Creating and maintaining design documents (requirements and solutions design). | C11: 5%
A12: B.3.2.2 | B12: Upgrades and Patching | C12: =SUM(C13:C18) -> 46%
A13: B.3.2.2.a | B13: Planning upgrades and patching by assessing and evaluating new releases for the system and technology stack components, including the database, operating system, application servers, and related software. | C13: 10%
A14: B.3.2.2.b | B14: Coordinating upgrades with relevant stakeholders, including application owners, infrastructure teams, and business users, to schedule and execute the upgrade process. | C14: 3%
A15: B.3.2.2.c | B15: Executing the upgrades without unplanned business disruption and performing post-upgrade/patch monitoring to address any issues or fine-tune configurations as needed. | C15: 15%
A16: B.3.2.2.d | B16: Conducting comprehensive testing for all instances, including functional testing, performance testing, and security assessments, to ensure the upgrades are stable and meet the expected quality standards. | C16: 3%
A17: B.3.2.2.e | B17: Advanced setup, configuration and troubleshooting of bespoke configuration that integrates between PeopleSoft sub-systems and interfacing systems whether documented or not. | C17: 10%
A18: B.3.2.2.f | B18: Documenting and maintaining requirements specifications and solutions designs. | C18: 5%
A19: B.3.2.3 | B19: Collaboration and Communication | C19: =SUM(C20:C21) -> 10%
A20: B.3.2.3.b | B20: Draw up and communicate a maintenance and release plan for the environment and report progress against the plan monthly. | C20: 5%
A21: B.3.2.3.c | B21: Provide proactive and timeous alerts, reporting, updates, and feedback to stakeholders. | C21: 5%
A22: B.3.2.4 | B22: Logistics | C22: =(C23) -> 5%
A23: B.3.2.4.i | B23: Resource/s must be able to work remotely and on-site as and when required. | C23: 5%
C24: Total Score out of 10 | D24: =SUMIFS(C6:C11,D6:D11,"Yes")*10+SUMIFS(C13:C18,D13:D18,"Yes")*10+SUMIFS(C20:C21,D20:D21,"Yes")*10+SUMIFS(C23:C23,D23:D23,"Yes")*10 -> 0

Sheet Transition-Continuation Plan
A1: Transition/Continuation Plan
A3: Transition/Continuation Plan Cross Reference | B3: Transition/Continuation Plan | C3: Weight | D3: Score
B4: The transition/continuation plan must include at least the three project plan elements | C4: Evaluation
A5: B.3.4 (i) | B5: Project Schedule in the form of a GANTT chart The project schedule must include at least the following elements/charateristics | C5: 60% | D5: =IF(ISERROR(AVERAGE(D6:D12)),"",AVERAGE(D6:D12)) -> 
B6: Project Schedule is in the form of a Gantt chart. | D6: =IF(ISERROR(VLOOKUP(C6,Scoring!$A$25:$B$27,2,FALSE)),"",VLOOKUP(C6,Scoring!$A$25:$B$27,2,FALSE)) -> 
B7: Tasks/activities that at least: • Indicates the creation of the main components that make up deliverables (Please see examples listed below) • Clearly distinguish between tasks to be completed in parallel with the current incumbent (maximum 20 days) and tasks to be completed after the current incumbent has exited | D7: =IF(ISERROR(VLOOKUP(C7,Scoring!$A$25:$B$27,2,FALSE)),"",VLOOKUP(C7,Scoring!$A$25:$B$27,2,FALSE)) -> 
B8: Summary tasks or milestones that indicate which activities provide at least the following outputs: • Stakeholder analysis • As-is configuration documentation • Taking on CSIR service management disciplines/requirements • Taking on CSIR's compliance requirements • Taking over system maintenance, support and operations of production and non-production environments | D8: =IF(ISERROR(VLOOKUP(C8,Scoring!$A$25:$B$27,2,FALSE)),"",VLOOKUP(C8,Scoring!$A$25:$B$27,2,FALSE)) -> 
B9: Task dependencies | D9: =IF(ISERROR(VLOOKUP(C9,Scoring!$A$25:$B$27,2,FALSE)),"",VLOOKUP(C9,Scoring!$A$25:$B$27,2,FALSE)) -> 
B10: Task durations - (If required, the bidder may use any arbitrary start date to indicate durations) | D10: =IF(ISERROR(VLOOKUP(C10,Scoring!$A$25:$B$27,2,FALSE)),"",VLOOKUP(C10,Scoring!$A$25:$B$27,2,FALSE)) -> 
B11: Responsible role(s) and institution(s) for eash task | D11: =IF(ISERROR(VLOOKUP(C11,Scoring!$A$25:$B$27,2,FALSE)),"",VLOOKUP(C11,Scoring!$A$25:$B$27,2,FALSE)) -> 
B12: The bidder can independently deliver of the transition plan. | D12: =IF(ISERROR(VLOOKUP(C12,Scoring!$A$25:$B$27,2,FALSE)),"",VLOOKUP(C12,Scoring!$A$25:$B$27,2,FALSE)) -> 
A13: B.3.4 (ii) | B13: Assumptions Detail all assumptions critical to deliver the transition plan on brief, on budget and on time (OB²OT) In the event where there are no assumptions, the transition plan must state "No Assumptions" | C13: 10% | D13: =IF(ISERROR(AVERAGE(D14:D15)),"",AVERAGE(D14:D15)) -> 
B14: There are no assumptions that indicate a reliance on the CSIR, or any other third party, to deliver on the transition plan other than providing access to information currently available. | D14: =IF(ISERROR(VLOOKUP(C14,Scoring!$A$25:$B$27,2,FALSE)),"",VLOOKUP(C14,Scoring!$A$25:$B$27,2,FALSE)) -> 
B15: None of the assumptions indicates a limitation in terms of delivery of the transition plan. | D15: =IF(ISERROR(VLOOKUP(C15,Scoring!$A$25:$B$27,2,FALSE)),"",VLOOKUP(C15,Scoring!$A$25:$B$27,2,FALSE)) -> 
A16: B.3.4 (iii) | B16: Risk Plan 1) Detail the risks in terms of: A description of the risk detailing cause and effect linking the two clauses by a phrase such as “leads to (directing or provoking and outcome)”; “causing (Unstoppable forced immediate outcome)’; “results in (Influence the outcome)” (without using conditional terms like “might”; “may”; “could”). State the cause as an event, or as a set of conditions. 2} Risk mitigation plan commensurate with the risk response | C16: 30% | D16: =IF(ISERROR(AVERAGE(D17:D20)),"",AVERAGE(D17:D20)) -> 
B17: Risk(s) detail the cause and effect and link the two clauses by the prescribed phases. | D17: =IF(ISERROR(VLOOKUP(C17,Scoring!$A$25:$B$27,2,FALSE)),"",VLOOKUP(C17,Scoring!$A$25:$B$27,2,FALSE)) -> 
B18: The risk mitigation plans effectively reduce the risks to an acceptable level. | D18: =IF(ISERROR(VLOOKUP(C18,Scoring!$A$25:$B$27,2,FALSE)),"",VLOOKUP(C18,Scoring!$A$25:$B$27,2,FALSE)) -> 
B19: The risk plan includes the risks associated with: • Inadequate overlap between exiting incumbent and successful bidder to gather required information • Reliance on current and past incumbents to resolve issues • A lack of information assumed to be available | D19: =IF(ISERROR(VLOOKUP(C19,Scoring!$A$25:$B$27,2,FALSE)),"",VLOOKUP(C19,Scoring!$A$25:$B$27,2,FALSE)) -> 
B20: The risk mitigation plans effectively reduce the risks to an acceptable level. | D20: =IF(ISERROR(VLOOKUP(C20,Scoring!$A$25:$B$27,2,FALSE)),"",VLOOKUP(C20,Scoring!$A$25:$B$27,2,FALSE)) -> 
C21: Total Score out of 10 | D21: =IF(ISERROR(SUM(C5*D5,C13*D13,C16*D16)),0,SUM(C5*D5,C13*D13,C16*D16)) -> 0.0
B24: Examples of Components that make up deliverables
B25: Stakeholder analysis
B26: • RACI • Stakeholder Analysis • Escalation Paths
B27: As-is implemented configuration
B28: • Technology Stack • Integration Documentation • Environment-specific Configuration Documents • Standards & Naming Conventions
B29: Service Management
B30: • SLA • Incident, Request & Problem Managements SOP's
B31: Compliance Requirements
B32: • Change Control Procedures • Information Security Requirements • Privacy Requirements • Audit Requirements
B33: System Maintenance & Operations of Production and Non-production environments
B34: • Backup Schedules • Operating System Maintenance • Database Patching Schedules • Upgrades • Disaster Recovery Procedures • Performance Benchmarking
